bitfinex-derivatives/quotes_BTCF0:USTF0_20250417
["timestamp","ask_amount","ask_price","bid_price","bid_amount"]
[1744899977961,0.237609,84113.0,84112.0,0.00908595]
[1744899978156,0.237609,84113.0,84112.0,0.00900595]
[1744899978361,0.237609,84113.0,84112.0,0.00908595]
[1744899978868,0.237609,84113.0,84112.0,0.12799645]
[1744899979977,0.237609,84113.0,84112.0,0.00908595]
[1744899980169,0.237609,84113.0,84112.0,0.12799645]
[1744899983166,0.237609,84113.0,84112.0,0.00908595]
[1744899985069,0.237609,84113.0,84112.0,0.12799645]
[1744899986569,0.237609,84113.0,84112.0,0.00908595]
[1744899986865,0.237609,84113.0,84112.0,0.00890767]
[1744899987066,0.1189218,84104.0,84103.0,0.0595693]
[1744899987264,0.4797218,84104.0,84103.0,0.000108]
[1744899987461,0.1189288,84099.0,84098.0,0.059465]
[1744899987658,0.1189288,84099.0,84098.0,0.07234088]
[1744899987961,0.2255288,84099.0,84098.0,0.19126788]
[1744899988770,0.2255288,84099.0,84098.0,0.19134788]
[1744899989068,0.2255288,84099.0,84098.0,0.07242088]
[1744899989666,0.2255288,84099.0,84098.0,0.02191778]
[1744899989875,0.2255288,84099.0,84098.0,0.14084798]
[1744899991972,0.2255288,84099.0,84098.0,0.19264798]
[1744899993172,0.3608,84104.0,84103.0,0.1189232]
[1744899993873,0.3608,84104.0,84103.0,0.2224232]
[1744899994374,0.00017828,84107.0,84106.0,0.1189189]
[1744899994865,0.00017828,84107.0,84106.0,0.2231189]
[1744899995976,0.00017828,84107.0,84106.0,0.2251189]
[1744899996575,0.00017828,84107.0,84106.0,0.2231189]
[1744899997577,0.00017828,84107.0,84106.0,0.2241189]
[1744899998676,0.00017828,84107.0,84106.0,0.2231189]
[1744900005984,0.00017828,84107.0,84106.0,0.5839189]
[1744900007882,0.00017828,84107.0,84106.0,0.5859189]
[1744900008078,0.00017828,84107.0,84106.0,0.5879189]
[1744900010006,0.00017828,84107.0,84106.0,0.5859189]
[1744900010178,8e-08,84107.0,84106.0,0.5869189]
[1744900010683,8e-08,84107.0,84106.0,0.9469189]
[1744900010878,8e-08,84107.0,84106.0,0.9459189]
[1744900011083,0.08962105,84127.0,84126.0,0.1188907]
[1744900011482,0.08962105,84127.0,84126.0,0.2705907]
[1744900011777,0.22851025,84127.0,84126.0,0.1688907]
[1744900011986,0.08962105,84127.0,84126.0,0.1689707]
[1744900012374,0.19042105,84127.0,84126.0,0.1689707]
[1744900013674,0.19042105,84127.0,84126.0,0.2191707]
[1744900015088,0.1008,84127.0,84126.0,0.2191707]
[1744900015277,0.1008,84127.0,84126.0,0.1689707]
[1744900028495,0.1008,84127.0,84126.0,0.1189707]
[1744900029394,0.2196892,84127.0,84126.0,0.1189707]
[1744900029602,0.2196892,84127.0,84110.0,0.00019683]
[1744900029603,0.1188991,84120.0,84110.0,0.00019683]
[1744900029899,0.5391487,84120.0,84119.0,0.1189006]
[1744900030201,0.5391487,84120.0,84119.0,0.1189806]
[1744900030501,0.6386487,84120.0,84119.0,0.1189806]
[1744900030885,0.4603,84120.0,84119.0,0.1189806]
[1744900031403,0.5791991,84120.0,84119.0,0.1189806]
[1744900031986,0.5791991,84120.0,84119.0,0.1189006]
[1744900032295,0.5791991,84120.0,84119.0,0.1189806]
[1744900032502,0.5791991,84120.0,84119.0,0.1189006]
[1744900032701,0.5791991,84120.0,84119.0,0.1189806]
[1744900033002,0.5791991,84120.0,84119.0,0.1189006]
[1744900033202,0.5791991,84120.0,84119.0,0.1189806]
[1744900033798,0.5791991,84120.0,84119.0,8e-05]
[1744900033999,0.5791991,84120.0,84119.0,0.1189806]
[1744900035906,0.4603,84120.0,84119.0,0.1189806]
[1744900036205,0.4603,84120.0,84119.0,0.2200806]
[1744900036507,0.5791991,84120.0,84119.0,0.2200806]
[1744900036809,0.4603,84120.0,84119.0,0.2200806]
[1744900037201,0.5791991,84120.0,84119.0,0.2200806]
[1744900037506,0.5791991,84120.0,84119.0,0.1189806]
[1744900038005,0.5791991,84120.0,84119.0,0.1189006]
[1744900038206,0.5791991,84120.0,84119.0,0.1189806]
[1744900039408,0.5791991,84120.0,84119.0,8e-05]
[1744900039704,0.5791991,84120.0,84101.0,0.1189255]
[1744900039705,0.1189232,84103.0,84101.0,0.1189255]
[1744900039902,0.1189232,84103.0,84098.0,0.14076728]
[1744900039903,0.1189288,84099.0,84098.0,0.14076728]
[1744900041707,0.1189288,84099.0,84098.0,0.32186239]
[1744900045203,0.2220288,84099.0,84098.0,0.19005701]
[1744900046512,0.2220288,84099.0,84098.0,0.30898721]
[1744900046806,0.2220288,84099.0,84098.0,0.0089619]
[1744900047008,0.0594651,84098.0,84095.0,0.12404703]
[1744900047309,0.4797331,84096.0,84095.0,0.136501]
[1744900047698,0.5752331,84096.0,84095.0,0.136501]
[1744900048008,0.5752331,84096.0,84095.0,0.185101]
[1744900049209,0.5752331,84096.0,84095.0,0.19404015]
[1744900057115,0.5752331,84096.0,84095.0,0.24244015]
[1744900057821,0.5752331,84096.0,84095.0,0.06265238]
[1744900058114,0.5752331,84096.0,84095.0,0.18166688]
[1744900058313,0.5752331,84096.0,84095.0,0.06273238]
[1744900058516,0.5752331,84096.0,84095.0,0.18166688]
[1744900058709,0.5752331,84096.0,84095.0,0.13306688]
[1744900059918,0.5752331,84096.0,84095.0,0.18106688]
[1744900060821,0.4563,84096.0,84095.0,0.18106688]
[1744900061121,0.5752331,84096.0,84095.0,0.22986688]
[1744900062634,0.5752331,84096.0,84095.0,0.18106688]
[1744900063329,0.5752331,84096.0,84095.0,0.13306688]
[1744900063531,0.1189401,84091.0,84077.0,0.0596256]
[1744900063729,0.1189585,84078.0,84077.0,0.0001458]
[1744900063924,0.059481,84076.0,84073.0,0.1189642]
[1744900064125,0.1189656,84074.0,84073.0,0.19079125]
[1744900064331,0.0594831,84073.0,84069.0,0.00511482]
[1744900064633,0.4797699,84070.0,84069.0,0.12408612]
[1744900064835,0.4797699,84070.0,84069.0,0.12416612]
[1744900065039,0.4797699,84070.0,84069.0,0.12408612]
[1744900065228,0.4797699,84070.0,84069.0,0.12416612]
[1744900065422,0.4797699,84070.0,84069.0,0.00519482]
[1744900065623,0.0594873,84067.0,84063.0,0.41995349]
[1744900065940,0.0594873,84067.0,84063.0,0.30097609]
[1744900065941,0.1189783,84064.0,84063.0,0.30097609]
[1744900066129,0.1189783,84064.0,84063.0,0.30105609]
[1744900066634,0.1189783,84064.0,84063.0,0.31322449]
[1744900066837,0.1697783,84064.0,84063.0,0.31322449]
[1744900067437,0.1697783,84064.0,84063.0,0.31422449]
[1744900068233,0.1697783,84064.0,84063.0,0.32303721]
[1744900068742,0.1697783,84064.0,84063.0,0.32403721]
[1744900069741,0.1697783,84064.0,84063.0,0.26454821]
[1744900070034,0.2168783,84064.0,84063.0,0.26446821]
[1744900070233,0.2168783,84064.0,84063.0,0.26454821]
[1744900070732,0.2168783,84064.0,84063.0,0.38352801]
[1744900071241,0.2168783,84064.0,84063.0,0.14204092]
[1744900072239,0.0979,84064.0,84063.0,0.14204092]
[1744900072442,0.2168783,84064.0,84063.0,0.14104092]
[1744900073039,0.2168783,84064.0,84063.0,0.14004092]
[1744900073637,0.2168783,84064.0,84063.0,0.02106112]
[1744900073839,0.1189925,84054.0,84053.0,0.0594965]
[1744900074034,0.1189925,84054.0,84053.0,0.07157136]
[1744900074228,0.1189925,84054.0,84053.0,0.07165136]
[1744900074537,0.0467,84055.0,84054.0,0.1189925]
[1744900074837,0.0467,84055.0,84054.0,0.2168925]
[1744900076035,0.3608,84059.0,84058.0,0.1189868]
[1744900077027,0.3608,84059.0,84058.0,0.1688868]
[1744900077440,0.00017839,84062.0,84061.0,0.1189826]
[1744900077734,0.4797508,84084.0,84083.0,0.1189515]
[1744900078732,0.4797508,84084.0,84083.0,0.13156996]
[1744900079532,0.5289508,84084.0,84083.0,0.13156996]
[1744900080343,0.5289508,84084.0,84083.0,0.01261846]
[1744900080543,0.1784306,84083.0,84082.0,0.1189524]
[1744900080740,0.1189571,84079.0,84078.0,0.01214988]
[1744900081134,0.1189614,84077.0,84076.0,0.1189609]
[1744900081447,0.1189614,84076.0,84075.0,0.00017839]
[1744900081639,0.5289614,84076.0,84075.0,0.11914119]
[1744900081943,0.7489614,84076.0,84075.0,0.11914119]
[1744900085843,0.7489614,84076.0,84075.0,0.00017839]
[1744900086145,0.7489614,84076.0,84075.0,0.11914119]
[1744900086346,0.7489614,84076.0,84075.0,0.00017839]
[1744900086848,0.7489614,84076.0,84075.0,0.11914119]
[1744900087640,0.8476614,84076.0,84075.0,0.00017839]
[1744900088147,0.8476614,84076.0,84075.0,0.11914119]
[1744900088749,0.8476614,84076.0,84075.0,0.00017839]
[1744900089753,0.8476614,84076.0,84075.0,0.00025839]
[1744900093850,0.1189798,84063.0,84062.0,0.000108]
[1744900094056,0.2379741,84060.0,84059.0,0.0594921]
[1744900094855,0.1189858,84060.0,84059.0,0.1784775]
[1744900095054,0.1189858,84060.0,84059.0,0.19053292]
[1744900095754,0.0594924,84060.0,84059.0,0.19053292]
[1744900096450,0.1065924,84060.0,84059.0,0.19053292]
[1744900101456,0.1573924,84060.0,84059.0,0.19053292]
[1744900103452,0.1573924,84060.0,84059.0,0.01205542]
[1744900103647,0.178486,84057.0,84054.0,0.18726355]
[1744900103851,0.1189911,84055.0,84054.0,0.23446355]
[1744900104157,0.0466,84056.0,84055.0,0.1189911]
[1744900104356,0.0466,84056.0,84055.0,0.2152911]
[1744900105661,0.0507,84062.0,84061.0,0.1189826]
[1744900106062,0.1696812,84062.0,84061.0,0.1703826]
[1744900106252,0.1696812,84062.0,84061.0,0.1189826]
[1744900106662,0.1796812,84062.0,84061.0,0.1189826]
[1744900107149,0.2308812,84062.0,84061.0,0.1673826]
[1744900111754,0.2308812,84062.0,84061.0,0.2157826]
[1744900112357,0.2208812,84062.0,84061.0,0.2157826]
[1744900118868,0.2208812,84062.0,84061.0,0.1673826]
[1744900119369,0.2208812,84062.0,84061.0,0.1189826]
[1744900121273,0.2208812,84062.0,84061.0,0.1190626]
[1744900122961,0.2308812,84062.0,84061.0,0.1190626]
[1744900125177,0.2208812,84062.0,84061.0,0.1190626]
[1744900125473,0.2208812,84062.0,84061.0,0.2166626]
[1744900126171,0.2208812,84062.0,84061.0,0.1688626]
[1744900127878,0.2208812,84062.0,84061.0,0.1190626]
[1744900128873,0.2208812,84062.0,84061.0,0.1189826]
[1744900129063,0.2208812,84062.0,84061.0,0.1190626]
[1744900130473,0.2208812,84062.0,84061.0,8e-05]
[1744900131476,0.2208812,84062.0,84061.0,0.1190626]
[1744900131779,0.2208812,84062.0,84061.0,8e-05]
[1744900131963,0.2208812,84062.0,84061.0,0.1190626]
[1744900134165,0.2308812,84062.0,84061.0,0.1190626]
[1744900137478,0.2208812,84062.0,84061.0,0.1190626]
[1744900137666,0.2208812,84062.0,84061.0,0.1677626]
[1744900140270,0.0512,84062.0,84061.0,0.1677626]
[1744900140475,0.3608,84063.0,84062.0,0.1189812]
[1744900140686,0.3608,84063.0,84062.0,0.2680812]
[1744900140884,0.4797798,84063.0,84062.0,0.2680812]
[1744900141480,0.5769798,84063.0,84062.0,0.2680812]
[1744900141781,0.5769798,84063.0,84062.0,0.2681612]
[1744900141982,0.5769798,84063.0,84062.0,0.2192612]
[1744900142183,0.5769798,84063.0,84062.0,0.2202612]
[1744900142377,0.5769798,84063.0,84062.0,0.1713612]
[1744900142778,0.5769798,84063.0,84062.0,0.1190612]
[1744900143085,0.5769798,84063.0,84062.0,0.1189812]
[1744900143285,0.5769798,84063.0,84062.0,0.1190612]
[1744900143475,0.5769798,84063.0,84062.0,0.1673612]
[1744900144086,0.5769798,84063.0,84062.0,0.1683612]
[1744900144492,0.5769798,84063.0,84062.0,0.00108]
[1744900144785,0.5769798,84063.0,84062.0,8e-05]
[1744900145786,0.5869798,84063.0,84062.0,8e-05]
[1744900146781,0.1189897,84056.0,84055.0,0.0594952]
[1744900146984,0.4797897,84056.0,84055.0,0.0594952]
[1744900147685,0.5763897,84056.0,84055.0,0.0594952]
[1744900148488,0.1189911,84055.0,84054.0,0.02134305]
[1744900148689,0.1189911,84055.0,84054.0,0.14033555]
[1744900148881,0.2188911,84055.0,84054.0,0.14033555]
[1744900150476,0.2288911,84055.0,84054.0,0.02134305]
[1744900150685,0.1190123,84040.0,84037.0,0.18135177]
[1744900150888,0.0595043,84043.0,84042.0,0.1190095]
[1744900151085,0.1785144,84043.0,84042.0,0.1190095]
[1744900151289,0.1190095,84042.0,84041.0,0.0513]
[1744900151486,0.1190123,84040.0,84039.0,0.0595862]
[1744900151791,0.1190123,84040.0,84039.0,0.1190937]
[1744900151992,0.1290123,84040.0,84039.0,0.1190937]
[1744900152488,0.1290123,84040.0,84039.0,0.1190137]
[1744900152678,0.1290123,84040.0,84039.0,0.1703937]
[1744900153881,0.1290123,84040.0,84039.0,0.2170937]
[1744900154082,0.1290123,84040.0,84039.0,0.05138]
[1744900154389,0.1290123,84040.0,84039.0,0.1190937]
[1744900154588,0.1290123,84040.0,84039.0,0.12790084]
[1744900154780,0.1190123,84040.0,84039.0,0.12790084]
[1744900155383,0.0595054,84042.0,84041.0,0.1190109]
[1744900155584,0.1081054,84042.0,84041.0,0.1190109]
[1744900156078,0.0486,84042.0,84041.0,0.2176109]
[1744900156281,0.1676095,84042.0,84041.0,0.2176109]
[1744900156687,0.0594917,84061.0,84044.0,0.059503]
[1744900156890,0.11918009,84048.0,84047.0,0.1190024]
[1744900157091,0.00017839,84048.0,84047.0,0.1190024]
[1744900159283,0.11917939,84048.0,84047.0,0.1200024]
[1744900159483,0.00017839,84048.0,84047.0,0.2216024]
[1744900159691,0.00017839,84048.0,84047.0,0.2206024]
[1744900160389,0.00017839,84048.0,84047.0,0.2196024]
[1744900161293,0.11917939,84048.0,84047.0,0.2206024]
[1744900162481,0.11917939,84048.0,84047.0,0.2196024]
[1744900163288,0.1190109,84041.0,84040.0,0.3118525]
[1744900163594,0.1190109,84041.0,84040.0,0.1785125]
[1744900163807,0.1190109,84041.0,84040.0,0.1785925]
[1744900164299,0.0472,84042.0,84041.0,0.1190109]
[1744900164500,0.0974,84042.0,84041.0,0.1699109]
[1744900164696,0.2164095,84042.0,84041.0,0.1699109]
[1744900165396,0.0974,84042.0,84041.0,0.1699109]
[1744900165603,0.0502,84042.0,84041.0,0.2194109]
[1744900167996,0.00017839,84048.0,84047.0,0.1190024]
[1744900168385,0.11917939,84048.0,84047.0,0.1700024]
[1744900168589,0.17867989,84048.0,84047.0,0.1190024]
[1744900168802,0.32467989,84048.0,84047.0,0.1190024]
[1744900169200,0.32467989,84048.0,84047.0,0.1190824]
[1744900169501,0.32467989,84048.0,84047.0,0.1190024]
[1744900169694,0.32467989,84048.0,84047.0,0.1190824]
[1744900172001,0.32467989,84048.0,84047.0,8e-05]
[1744900172196,0.32467989,84048.0,84047.0,0.1190824]
[1744900172399,0.32467989,84048.0,84047.0,8e-05]
[1744900172588,0.1190123,84040.0,84039.0,0.00891514]
[1744900172792,0.4898123,84040.0,84039.0,0.00891514]
[1744900172993,0.5861123,84040.0,84039.0,0.00880714]
[1744900173194,0.178539,84032.0,84031.0,0.1785369]
[1744900173394,0.539339,84032.0,84031.0,0.1785369]
[1744900173898,0.479825,84032.0,84031.0,0.0595118]
[1744900174095,0.6203125,84032.0,84025.0,0.18149757]
[1744900174398,0.4798322,84026.0,84025.0,0.31614851]
[1744900174992,0.3608,84026.0,84025.0,0.31600271]
[1744900175200,0.4592,84026.0,84025.0,0.31600271]
[1744900175796,0.5782322,84026.0,84025.0,1.81608271]
[1744900176295,0.4592,84026.0,84025.0,1.81608271]
[1744900177200,0.119023,84033.0,84025.0,1.81608271]
[1744900177201,0.3608,84033.0,84032.0,0.1190237]
[1744900177502,0.4798222,84033.0,84032.0,0.1190237]
[1744900177690,0.5287222,84033.0,84032.0,0.1190237]
[1744900178699,0.5287222,84033.0,84032.0,1.6190237]
[1744900179103,0.5287222,84033.0,84032.0,1.6658237]
[1744900179290,0.3608,84033.0,84032.0,1.6658237]
[1744900179497,0.3608,84033.0,84032.0,1.7161237]
[1744900179897,0.0489,84041.0,84040.0,0.1190123]
[1744900180405,0.2158109,84041.0,84040.0,0.1190123]
[1744900180904,0.5766109,84041.0,84040.0,0.1190123]
[1744900182399,0.3608,84041.0,84040.0,0.1190123]
[1744900182604,0.2159035,84047.0,84046.0,0.1190038]
[1744900183292,0.2159035,84047.0,84046.0,0.1661038]
[1744900183902,0.11975689,84064.0,84046.0,0.74146]
[1744900184103,0.11975689,84064.0,84063.0,0.4797798]
[1744900184805,0.11975689,84064.0,84063.0,0.5259798]
[1744900185104,0.11975689,84064.0,84063.0,0.5260598]
[1744900185302,0.11975689,84064.0,84063.0,0.407]
[1744900185303,0.23873519,84064.0,84063.0,0.407]
[1744900185508,0.33673519,84064.0,84063.0,0.5260598]
[1744900185707,0.33673519,84064.0,84063.0,0.5259798]
[1744900185901,0.21775689,84064.0,84063.0,0.5260598]
[1744900186097,0.16695689,84064.0,84063.0,0.5270598]
[1744900186297,0.16695689,84064.0,84063.0,0.6236598]
[1744900186611,0.11975689,84064.0,84063.0,0.6236598]
[1744900186911,0.11975689,84064.0,84063.0,0.6226598]
[1744900189001,0.11975689,84064.0,84063.0,0.6236598]
[1744900189311,0.16276239,84072.0,84071.0,0.1189684]
[1744900189608,0.16276239,84072.0,84071.0,0.4797684]
[1744900190713,0.10327849,84072.0,84071.0,0.4797684]
[1744900191101,0.22224549,84072.0,84071.0,0.4797684]
[1744900191302,0.22224549,84072.0,84071.0,0.12798837]
[1744900192105,0.22224549,84072.0,84071.0,0.12806837]
[1744900192502,0.22224549,84072.0,84071.0,0.17466837]
[1744900194104,0.10327849,84072.0,84071.0,0.17466837]
[1744900194304,0.22224549,84072.0,84071.0,0.22546837]
[1744900194506,0.12414549,84072.0,84071.0,0.22546837]
[1744900194813,0.12414549,84072.0,84071.0,0.17466837]
[1744900195012,0.21904549,84072.0,84071.0,0.17466837]
[1744900196118,0.10007849,84072.0,84071.0,0.17466837]
[1744900196307,0.10007849,84072.0,84071.0,0.58406837]
[1744900196914,0.21904549,84072.0,84071.0,0.58406837]
[1744900198212,0.10007849,84072.0,84071.0,0.58406837]
[1744900198416,0.21904549,84072.0,84071.0,0.58406837]
[1744900198712,0.10007849,84072.0,84071.0,0.58406837]
[1744900199305,0.21904549,84072.0,84071.0,0.58406837]
[1744900200313,0.10007849,84072.0,84071.0,0.58406837]
[1744900200510,0.36567597,84100.0,84071.0,0.46509997]
[1744900200713,0.11975689,84100.0,84090.0,0.0594699]
[1744900200913,0.3608,84095.0,84075.0,0.08352]
[1744900201223,0.3608,84083.0,84075.0,0.08352]
[1744900201411,0.047,84082.0,84081.0,0.1189529]
[1744900201721,0.1659529,84082.0,84081.0,0.1189529]
[1744900202012,0.1784393,84078.0,84076.0,0.0594804]
[1744900202212,0.16746,84077.0,84076.0,0.1784418]
[1744900202416,0.1189614,84076.0,84075.0,0.0836]
[1744900202620,0.1189614,84076.0,84075.0,0.08352]
[1744900202823,0.1674614,84076.0,84075.0,0.2025628]
[1744900203004,0.1674614,84076.0,84075.0,0.2024828]
[1744900203203,0.1674614,84076.0,84075.0,0.2025628]
[1744900203407,0.2150614,84076.0,84075.0,0.08352]
[1744900204207,0.2150614,84076.0,84075.0,0.2025628]
[1744900204405,0.2150614,84076.0,84075.0,0.0836]
[1744900204712,0.2150614,84076.0,84075.0,0.5633628]
[1744900204917,0.0961,84076.0,84075.0,0.5633628]
[1744900205714,0.0961,84076.0,84075.0,0.6647628]
[1744900207125,0.0961,84076.0,84075.0,0.6657628]
[1744900207511,0.0485,84076.0,84075.0,0.6657628]
[1744900207706,0.0485,84076.0,84075.0,0.6677628]
[1744900208113,0.0485,84076.0,84075.0,0.6657628]
[1744900208319,0.0485,84076.0,84075.0,0.6677628]
[1744900208520,0.0485,84076.0,84075.0,0.6175628]
[1744900209426,0.0485,84076.0,84075.0,0.6185628]
[1744900209916,0.0485,84080.0,84079.0,0.1189571]
[1744900210117,0.051,84089.0,84087.0,0.1189458]
[1744900210428,0.051,84089.0,84087.0,0.1189454]
[1744900210623,0.0508,84088.0,84087.0,0.1189458]
[1744900211124,0.0508,84088.0,84087.0,0.1654458]
[1744900211325,0.0508,84088.0,84087.0,0.1189458]
[1744900211910,0.1697444,84088.0,84087.0,0.1189458]
[1744900212424,0.2164444,84088.0,84087.0,0.1190258]
[1744900212621,0.2164444,84088.0,84087.0,0.1189458]
[1744900212810,0.2164444,84088.0,84087.0,0.1190258]
[1744900213009,0.2164444,84088.0,84087.0,8e-05]
[1744900213527,0.1784281,84085.0,84084.0,0.1189468]
[1744900213912,0.0975,84088.0,84081.0,0.0594768]
[1744900214125,0.0508,84088.0,84087.0,0.1189458]
[1744900214324,0.00017837,84090.0,84089.0,0.118943]
[1744900214729,0.00017837,84090.0,84089.0,0.261143]
[1744900216034,0.00017837,84090.0,84089.0,0.27565923]
[1744900216416,7e-08,84090.0,84089.0,0.27565923]
[1744900216716,7e-08,84090.0,84089.0,0.33565923]
[1744900216925,1e-08,84098.0,84097.0,0.1189317]
[1744900217124,1e-08,84098.0,84097.0,0.5632517]
[1744900217831,1e-08,84098.0,84097.0,0.6594517]
[1744900220322,1e-08,84098.0,84097.0,0.6604517]
[1744900221134,1e-08,84098.0,84097.0,0.6624517]
[1744900222332,1e-08,84098.0,84097.0,0.5789317]
[1744900222535,1e-08,84098.0,84097.0,0.6624917]
[1744900224626,0.00017837,84106.0,84102.0,0.1189246]
[1744900224830,0.00017837,84106.0,84102.0,0.4797246]
[1744900225136,0.00017837,84106.0,84102.0,0.5632046]
[1744900225637,0.00017837,84106.0,84105.0,0.1189203]
[1744900225936,0.005,84124.0,84123.0,0.1188949]
[1744900226125,0.1742935,84124.0,84123.0,0.1188949]
[1744900226725,0.0554,84124.0,84123.0,0.1188949]
[1744900226933,0.0554,84124.0,84123.0,0.1692949]
[1744900227135,0.0554,84124.0,84123.0,0.1188949]
[1744900227337,0.1022,84124.0,84123.0,0.1188949]
[1744900227539,0.2210935,84124.0,84123.0,0.00892093]
[1744900227836,0.1022,84124.0,84123.0,0.1188949]
[1744900228138,0.1032,84124.0,84123.0,0.1189749]
[1744900228325,0.1032,84124.0,84123.0,0.1667749]
[1744900228838,0.0564,84124.0,84123.0,0.5275749]
[1744900229136,0.0564,84124.0,84123.0,0.6265749]
[1744900229333,0.0564,84124.0,84123.0,0.63571263]
[1744900230226,0.006,84124.0,84123.0,0.63571263]
[1744900230624,0.007,84124.0,84123.0,0.63571263]
[1744900230932,0.007,84124.0,84123.0,0.58711263]
[1744900232037,0.007,84124.0,84123.0,0.22631263]
[1744900232232,0.007,84124.0,84097.0,8e-05]
[1744900232233,0.1189189,84106.0,84097.0,8e-05]
[1744900232536,0.1189189,84106.0,84088.0,0.3608]
[1744900232537,0.1189359,84094.0,84088.0,0.3608]
[1744900232736,0.1389359,84094.0,84093.0,0.35975747]
[1744900233044,0.142,84105.0,84094.0,0.1189359]
[1744900233045,0.0952,84095.0,84094.0,0.1189359]
[1744900233242,0.2141345,84095.0,84094.0,0.1653359]
[1744900233543,0.0952,84095.0,84094.0,0.1653359]
[1744900233744,0.0952,84095.0,84094.0,0.1643359]
[1744900234336,0.0962,84095.0,84094.0,0.1643359]
[1744900236845,0.0952,84095.0,84094.0,0.1643359]
[1744900237139,0.2141345,84095.0,84094.0,0.0464]
[1744900237440,0.2141345,84095.0,84085.0,0.08348]
[1744900237441,0.0594721,84089.0,84085.0,0.08348]
[1744900237647,0.1189458,84087.0,84086.0,0.11912557]
[1744900238030,0.2105458,84087.0,84086.0,0.11912557]
[1744900238242,0.2105458,84087.0,84086.0,0.11920557]
[1744900238732,0.2105458,84087.0,84086.0,0.00025837]
[1744900238936,0.2105458,84087.0,84086.0,0.00017837]
[1744900239630,0.2105458,84087.0,84086.0,0.00025837]
[1744900239938,0.2105458,84087.0,84086.0,0.11920557]
[1744900240951,0.1189529,84082.0,84081.0,0.00877505]
[1744900241243,0.1189614,84076.0,84072.0,0.1189666]
[1744900241443,0.2,84076.0,84072.0,0.0594833]
[1744900241742,0.1189699,84072.0,84071.0,0.1189678]
[1744900241945,0.178454,84072.0,84071.0,0.1189678]
[1744900242148,0.2060841,84072.0,84071.0,0.1190478]
[1744900243347,0.265567,84072.0,84071.0,0.1190478]
[1744900248633,0.265567,84072.0,84071.0,0.1682478]
[1744900251146,0.265567,84072.0,84071.0,0.1190478]
[1744900252245,0.265567,84072.0,84071.0,0.1655478]
[1744900253246,0.445567,84072.0,84071.0,0.1655478]
[1744900254353,0.445567,84072.0,84071.0,0.1190478]
[1744900256145,0.445567,84072.0,84071.0,0.1649478]
[1744900256451,0.265567,84072.0,84071.0,0.1649478]
[1744900257835,0.465567,84072.0,84071.0,8e-05]
[1744900258238,0.465567,84072.0,84057.0,0.1431215]
[1744900258239,0.1189783,84064.0,84063.0,0.00919533]
[1744900258542,0.3289783,84064.0,84063.0,0.00919533]
[1744900258747,0.3289783,84064.0,84063.0,0.00927533]
[1744900258933,0.3769783,84064.0,84063.0,0.00927533]
[1744900259136,0.4266783,84064.0,84063.0,0.00927533]
[1744900259339,0.4266783,84064.0,84063.0,0.12825513]
[1744900259744,0.2166783,84064.0,84063.0,0.12825513]
[1744900259945,0.3866783,84064.0,84063.0,0.17465513]
[1744900260447,0.2166783,84064.0,84063.0,0.17465513]
[1744900262546,0.0499,84072.0,84063.0,0.17465513]
[1744900262547,0.3608,84088.0,84063.0,0.49999533]
[1744900262745,0.005,84098.0,84079.0,0.7216]
[1744900262947,0.00053051,84096.0,84095.0,0.4797345]
[1744900263138,0.00053051,84096.0,84095.0,0.9240545]
[1744900263538,0.00053051,84096.0,84095.0,1.0242545]
[1744900263842,0.1589331,84096.0,84095.0,0.0504]
[1744900264046,0.1001,84097.0,84096.0,0.1189331]
[1744900264242,0.005,84098.0,84097.0,0.1189317]
[1744900264557,0.1239302,84098.0,84097.0,0.1651317]
[1744900264751,0.1239302,84098.0,84097.0,0.2149317]
[1744900264952,0.005,84098.0,84097.0,0.2149317]
[1744900265352,0.005,84098.0,84097.0,0.5145317]
[1744900265851,0.005,84098.0,84097.0,0.5146117]
[1744900266454,0.005,84098.0,84097.0,0.2655317]
[1744900266751,0.1239302,84098.0,84097.0,0.2160117]
[1744900266938,0.1239302,84098.0,84097.0,0.096]
[1744900267145,0.1239302,84098.0,84097.0,0.1662117]
[1744900267551,0.1239302,84098.0,84097.0,0.0482]
[1744900267848,0.1439302,84098.0,84097.0,0.00208]
[1744900268348,0.2359302,84098.0,84097.0,0.002]
[1744900268945,0.2359302,84098.0,84097.0,0.001]
[1744900269153,0.2359302,84098.0,84097.0,0.002]
[1744900269341,0.2359302,84098.0,84097.0,0.00208]
[1744900269649,0.2359302,84098.0,84097.0,0.00108]
[1744900270348,0.2359302,84098.0,84097.0,8e-05]
[1744900270755,0.117,84098.0,84087.0,0.00017837]
[1744900271050,0.4797444,84088.0,84087.0,0.00017837]
[1744900271357,0.4797444,84088.0,84073.0,0.1189648]
[1744900271358,0.1189741,84067.0,84066.0,0.0595954]
[1744900271541,0.1189783,84064.0,84059.0,0.0473]
[1744900271741,0.1189953,84052.0,84051.0,0.0001458]
[1744900271942,0.059499,84051.0,84046.0,0.00906676]
[1744900272147,0.1190067,84044.0,84041.0,0.34967801]
[1744900272344,0.1190067,84044.0,84043.0,0.1241245]
[1744900272659,0.1390067,84044.0,84043.0,0.0051964]
[1744900272959,0.1390067,84044.0,84043.0,0.0051164]
[1744900273348,0.2373067,84044.0,84043.0,0.0051164]
[1744900273544,0.1190095,84042.0,84041.0,0.30237801]
[1744900273741,0.4998095,84042.0,84041.0,0.30237801]
[1744900273942,0.02,84042.0,84041.0,0.30237801]
[1744900274153,0.1390095,84042.0,84041.0,0.42146891]
[1744900274355,0.1190095,84042.0,84041.0,0.42146891]
[1744900274555,0.1190095,84042.0,84041.0,0.30237801]
[1744900274750,0.1190095,84042.0,84041.0,0.30245801]
[1744900274945,0.1190095,84042.0,84041.0,0.42146891]
[1744900275152,0.1190095,84042.0,84041.0,0.30245801]
[1744900275353,0.1190095,84042.0,84041.0,0.30237801]
[1744900275551,0.1290095,84042.0,84041.0,0.30237801]
[1744900275753,0.1290095,84042.0,84041.0,0.30245801]
[1744900275952,0.1190109,84041.0,84040.0,0.00017837]
[1744900276155,0.2229109,84041.0,84040.0,0.00017837]
[1744900277161,0.2229109,84041.0,84040.0,0.00025837]
[1744900277458,0.2229109,84041.0,84040.0,0.11927067]
[1744900278162,0.2229109,84041.0,84040.0,0.00025837]
[1744900278846,0.2229109,84041.0,84040.0,0.00017837]
[1744900279047,0.2229109,84041.0,84040.0,0.00025837]
[1744900280747,0.2129109,84041.0,84040.0,0.11927067]
[1744900282256,0.2129109,84041.0,84040.0,0.16917067]
[1744900283661,0.2129109,84041.0,84040.0,0.05015837]
[1744900284155,0.2129109,84041.0,84040.0,0.16917067]
[1744900284761,0.2129109,84041.0,84040.0,0.05015837]
[1744900285465,0.2129109,84041.0,84040.0,0.00025837]
[1744900287159,0.0595143,84029.0,84012.0,0.1263036]
[1744900287351,0.1190435,84018.0,84017.0,0.00511798]
[1744900287556,0.1290435,84018.0,84017.0,0.00511798]
[1744900287752,0.1190435,84018.0,84017.0,0.00511798]
[1744900288161,0.1190435,84018.0,84017.0,0.00519798]